bitfinex/quotes_BTCUSD_20251215
["timestamp","ask_amount","ask_price","bid_price","bid_amount"]
[1765821393608,0.64245121,85802.0,85801.0,0.00038279]
[1765821393807,1.11932006,85802.0,85801.0,2.79e-06]
[1765821394149,1.04831721,85802.0,85801.0,2.79e-06]
[1765821394384,1.33901721,85802.0,85801.0,2.79e-06]
[1765821394753,1.40702005,85802.0,85801.0,2.79e-06]
[1765821395377,1.52321468,85802.0,85801.0,2.79e-06]
[1765821395778,1.52921468,85802.0,85801.0,2.79e-06]
[1765821396621,1.53380151,85797.0,85796.0,2.79e-06]
[1765821396758,1.53418329,85797.0,85796.0,2.79e-06]
[1765821396960,1.53418329,85797.0,85767.0,0.01185949]
[1765821396961,0.01165745,85782.0,85767.0,0.0002]
[1765821397168,0.23321711,85757.0,85756.0,0.0002]
[1765821398303,0.23321711,85757.0,85756.0,0.00131476]
[1765821399911,0.23321471,85758.0,85756.0,0.00131476]
[1765821400084,0.23321471,85758.0,85756.0,0.00231476]
[1765821400290,0.23321471,85758.0,85756.0,0.00392763]
[1765821400689,0.01166017,85762.0,85756.0,0.00392763]
[1765821400690,0.01166031,85761.0,85757.0,0.23482945]
[1765821400897,0.24486939,85760.0,85759.0,0.11643045]
[1765821401103,0.01165908,85770.0,85759.0,0.00161287]
[1765821401260,0.01165908,85770.0,85766.0,0.00999399]
[1765821401261,0.24485166,85767.0,85766.0,0.00999399]
[1765821401647,0.24485939,85764.0,85763.0,0.11643045]
[1765821401856,0.24485166,85767.0,85763.0,0.12970335]
[1765821401857,0.01165949,85767.0,85763.0,0.12970335]
[1765821402060,0.01165827,85776.0,85773.0,0.11643045]
[1765821402204,0.01165813,85777.0,85773.0,0.11643045]
[1765821402406,0.23318992,85767.0,85766.0,0.00161287]
[1765821402764,0.23318992,85767.0,85756.0,0.00031476]
[1765821402765,0.24487225,85759.0,85756.0,0.00031476]
[1765821402987,0.01166003,85763.0,85757.0,0.01856]
[1765821402988,0.01166031,85761.0,85757.0,0.01856]
[1765821403139,0.23319491,85766.0,85763.0,0.01166003]
[1765821403345,0.0116599,85764.0,85760.0,0.24486831]
[1765821403548,0.01057824,85765.0,85761.0,0.01166031]
[1765821403753,0.01165868,85773.0,85772.0,0.11643045]
[1765821403934,0.01165854,85774.0,85772.0,0.1292394]
[1765821404360,0.24483035,85774.0,85772.0,0.13085227]
[1765821404561,0.24483035,85774.0,85772.0,0.01442182]
[1765821404766,0.23319264,85766.0,85764.0,0.01856]
[1765821405008,0.01165922,85769.0,85766.0,0.24485133]
[1765821405130,0.01165922,85769.0,85764.0,0.02017287]
[1765821405131,0.23319354,85766.0,85764.0,0.02017287]
[1765821405336,0.23319354,85766.0,85764.0,0.00161287]
[1765821405536,0.23320623,85761.0,85760.0,0.002]
[1765821405743,0.23320623,85761.0,85760.0,0.01207452]
[1765821405963,0.24485738,85765.0,85760.0,0.01368739]
[1765821406166,0.01165963,85766.0,85764.0,0.11643045]
[1765821406167,0.24485278,85766.0,85764.0,0.11643045]
[1765821406396,0.23320623,85761.0,85760.0,0.13011784]
[1765821406584,0.23320623,85761.0,85760.0,0.01368739]
[1765821407099,0.23320623,85761.0,85760.0,0.00261287]
[1765821407455,0.23320623,85761.0,85760.0,0.00161287]
[1765821407656,0.23320623,85761.0,85760.0,0.00461287]
[1765821407885,0.23320623,85761.0,85760.0,0.00561287]
[1765821408903,0.23320623,85761.0,85760.0,0.00261287]
[1765821409098,0.23320399,85762.0,85760.0,0.00161287]
[1765821409301,0.23320399,85762.0,85760.0,0.00261287]
[1765821409610,0.24482372,85776.0,85775.0,0.11643045]
[1765821409827,0.23315833,85779.0,85776.0,0.11643045]
[1765821410141,0.23315833,85779.0,85778.0,0.00999399]
[1765821410142,0.24481573,85779.0,85778.0,0.00999399]
[1765821410373,0.23316001,85778.0,85777.0,0.01397474]
[1765821410986,0.23316545,85776.0,85775.0,0.00161287]
[1765821411408,0.23317089,85774.0,85773.0,0.01856]
[1765821411636,0.23317972,85771.0,85767.0,0.23318462]
[1765821411867,0.24484084,85770.0,85769.0,0.01856]
[1765821412071,0.01165732,85783.0,85779.0,0.01165786]
[1765821412298,0.23315291,85781.0,85778.0,0.23315985]
[1765821412510,0.2448131,85780.0,85779.0,0.02754459]
[1765821412706,0.2448131,85780.0,85777.0,0.002]
[1765821412707,0.23316001,85778.0,85777.0,0.002]
[1765821413206,0.23318176,85770.0,85769.0,0.001]
[1765821413568,0.01166017,85762.0,85758.0,0.11643045]
[1765821413920,0.24486654,85761.0,85759.0,0.01469661]
[1765821414268,0.24486556,85762.0,85759.0,0.01469661]
[1765821414470,0.233207,85761.0,85759.0,0.01469661]
[1765821414875,0.23320728,85761.0,85759.0,0.01469661]
[1765821415889,0.01166003,85763.0,85759.0,0.01469661]
[1765821416086,0.23320698,85761.0,85759.0,0.02635719]
[1765821416413,0.24486381,85762.0,85760.0,0.01284798]
[1765821416619,0.24485559,85765.0,85760.0,0.24766875]
[1765821416922,0.0116599,85764.0,85761.0,0.01166031]
[1765821417118,0.01165963,85766.0,85762.0,0.01166017]
[1765821417351,0.01165936,85768.0,85763.0,0.23320062]
[1765821417540,0.24484637,85769.0,85766.0,0.244852]
[1765821417742,0.24484793,85768.0,85765.0,0.01165976]
[1765821418002,0.233191,85767.0,85764.0,0.25955261]
[1765821418198,0.24484793,85768.0,85764.0,0.25955261]
[1765821418379,0.02471165,85767.0,85765.0,0.23319479]
[1765821418727,0.02471165,85767.0,85766.0,0.01284798]
[1765821419180,0.02471165,85767.0,85766.0,0.24604062]
[1765821419659,0.23319535,85765.0,85764.0,0.00161287]
[1765821419853,0.28886961,85765.0,85764.0,0.00161287]
[1765821420112,0.02471165,85765.0,85764.0,0.00161287]
[1765821420331,0.257907,85765.0,85764.0,0.00161287]
[1765821421076,0.23321072,85760.0,85757.0,0.26343768]
[1765821421295,0.02471165,85759.0,85757.0,0.2634371]
[1765821421519,0.02471165,85758.0,85757.0,0.2634371]
[1765821421725,0.02471165,85758.0,85757.0,0.01856]
[1765821421925,0.02471165,85758.0,85757.0,0.25177711]
[1765821422346,0.02471165,85758.0,85757.0,0.02017287]
[1765821422564,0.02471165,85758.0,85757.0,0.37482043]
[1765821422772,0.06162744,85775.0,85757.0,0.37482043]
[1765821422773,0.02471165,85762.0,85761.0,0.23320623]
[1765821422971,0.24479603,85786.0,85761.0,0.23320623]
[1765821422972,0.03096261,85777.0,85776.0,0.24315944]
[1765821423155,0.03096261,85777.0,85776.0,0.41586877]
[1765821423156,0.0247755,85777.0,85776.0,0.41586877]
[1765821423474,0.05573811,85777.0,85776.0,0.36976877]
[1765821423676,0.0247755,85777.0,85776.0,0.36976877]
[1765821423788,0.0247755,85777.0,85776.0,0.48799877]
[1765821424665,0.0247755,85780.0,85779.0,0.34958774]
[1765821424869,0.0247755,85786.0,85785.0,0.34957144]
[1765821425115,0.0247755,85789.0,85788.0,0.24312682]
[1765821425318,0.05575137,85794.0,85792.0,0.23312196]
[1765821425520,0.04125535,85798.0,85797.0,0.34953883]
[1765821425727,0.02478095,85798.0,85797.0,0.34953883]
[1765821425900,0.23308701,85805.0,85797.0,0.34953883]
[1765821425901,0.03097646,85811.0,85804.0,0.01165446]
[1765821426108,0.03097646,85811.0,85785.0,0.003]
[1765821426109,0.01165664,85788.0,85785.0,0.003]
[1765821426308,0.11619463,85800.0,85759.0,0.03537]
[1765821426309,0.0116565,85789.0,85784.0,0.01165718]
[1765821426651,0.24477521,85793.0,85792.0,0.001]
[1765821426827,0.23311925,85793.0,85792.0,0.001]
[1765821427338,0.23311925,85793.0,85792.0,0.01390874]
[1765821427657,0.01165569,85795.0,85792.0,0.001]
[1765821427830,0.23310073,85800.0,85799.0,0.11643045]
[1765821427831,0.24475572,85800.0,85799.0,0.11643045]
[1765821427974,0.23312525,85791.0,85786.0,0.01856]
[1765821428173,0.23313555,85787.0,85786.0,0.01856]
[1765821428373,0.23313555,85787.0,85785.0,0.003]
[1765821428374,0.23313827,85786.0,85785.0,0.001]
[1765821428576,0.01165704,85785.0,85782.0,0.01856]
[1765821428873,0.23314642,85783.0,85782.0,0.01856]
[1765821429410,0.23314642,85783.0,85781.0,0.11643045]
[1765821429411,0.23314914,85782.0,85781.0,0.11643045]
[1765821429608,0.23314642,85783.0,85776.0,0.11643045]
[1765821429609,0.01165813,85777.0,85776.0,0.11643045]
[1765821429871,0.23316001,85778.0,85777.0,0.11643045]
[1765821430089,0.23316001,85778.0,85776.0,0.00011476]
[1765821430292,0.01165786,85779.0,85776.0,0.00011476]
[1765821430646,0.01165759,85781.0,85777.0,0.23316273]
[1765821430839,0.11632005,85793.0,85777.0,0.23316273]
[1765821430840,0.23313878,85786.0,85782.0,0.24480398]
[1765821431047,0.01165637,85790.0,85787.0,0.01165677]
[1765821431250,0.01165609,85792.0,85787.0,0.01165677]
[1765821431251,0.24477822,85792.0,85791.0,0.11643045]
[1765821431667,0.01165555,85796.0,85793.0,0.01165596]
[1765821431876,0.01165514,85799.0,85793.0,0.12969928]
[1765821432051,0.01165514,85799.0,85793.0,0.11804332]
[1765821432052,0.23311653,85794.0,85793.0,0.11804332]
[1765821432260,0.23311653,85794.0,85793.0,0.013856]
[1765821432730,0.24480945,85781.0,85780.0,0.00999399]
[1765821432940,0.24480945,85781.0,85780.0,0.01856]
[1765821433547,0.24480667,85782.0,85780.0,0.01856]
[1765821433769,0.23315186,85781.0,85780.0,0.01856]
[1765821433923,0.01165745,85782.0,85780.0,0.23476737]
[1765821433924,0.23314979,85782.0,85780.0,0.23476737]
[1765821434134,0.23315176,85782.0,85780.0,0.00161287]
[1765821434505,0.01165732,85783.0,85780.0,0.01327059]
[1765821434710,0.01165732,85783.0,85780.0,0.01727059]
[1765821434908,0.23314914,85782.0,85780.0,0.00361287]
[1765821435115,0.23314914,85782.0,85780.0,0.00161287]
[1765821435315,0.23314914,85782.0,85780.0,0.00361287]
[1765821435511,0.24478439,85790.0,85783.0,0.01165732]
[1765821435782,0.01165637,85790.0,85785.0,0.01165704]
[1765821435981,0.24479488,85787.0,85784.0,0.2331432]
[1765821436218,0.24479488,85787.0,85784.0,0.24480038]
[1765821436414,0.24479036,85788.0,85785.0,0.23313942]
[1765821436612,0.01165623,85791.0,85787.0,0.01165677]
[1765821436814,0.2331309,85789.0,85787.0,0.01165677]
[1765821437260,0.01165582,85794.0,85788.0,0.01165664]
[1765821437474,0.2331121,85796.0,85794.0,0.01165582]
[1765821437714,0.01165555,85796.0,85793.0,0.2547692]
[1765821437918,0.24476638,85797.0,85794.0,0.23311506]
[1765821438128,0.01165528,85798.0,85794.0,0.24477088]
[1765821438338,0.24476164,85798.0,85795.0,0.23311381]
[1765821438552,0.24474323,85805.0,85801.0,0.01165487]
[1765821438776,0.24474323,85805.0,85802.0,0.11643045]
[1765821438777,0.23308936,85804.0,85802.0,0.11643045]
[1765821438984,0.01165378,85809.0,85802.0,0.11643045]
[1765821438985,0.24473273,85808.0,85805.0,0.01165433]
[1765821439192,0.24473258,85808.0,85804.0,0.24474128]
[1765821439398,0.01165406,85807.0,85803.0,0.25474059]
[1765821439886,0.01165351,85811.0,85805.0,0.01165433]
[1765821440174,0.03094769,85826.0,85804.0,0.01165446]
[1765821440175,0.03094769,85834.0,85830.0,0.23266189]
[1765821440387,0.06189539,85843.0,85822.0,0.01165202]
[1765821440388,0.54027952,85850.0,85841.0,0.01164944]
[1765821440594,0.00038225,85850.0,85849.0,0.24461553]
[1765821441009,0.00038225,85850.0,85849.0,0.11643045]
[1765821441216,0.2449956,85850.0,85844.0,0.23297884]
[1765821441419,0.01164849,85848.0,85845.0,0.01856]
[1765821441627,0.23297065,85848.0,85845.0,0.01856]
[1765821441803,0.00038225,85850.0,85847.0,0.2446198]
[1765821442000,0.01203047,85850.0,85847.0,0.01164863]
[1765821442211,0.00038225,85850.0,85849.0,0.001]
[1765821442346,0.00038225,85850.0,85847.0,0.2446204]
[1765821442347,0.00038225,85850.0,85848.0,0.232969]
[1765821444024,0.00038225,85850.0,85849.0,0.001]
[1765821444594,0.01164849,85848.0,85845.0,0.01856]
[1765821444977,0.23297261,85847.0,85845.0,0.01856]
[1765821446221,0.23297605,85846.0,85843.0,0.01164917]
[1765821446431,0.24461979,85848.0,85846.0,0.01856]
[1765821446657,0.01164876,85846.0,85841.0,0.01164944]
[1765821446877,0.2446206,85848.0,85847.0,0.01856]
[1765821447506,0.2446206,85848.0,85847.0,0.04610459]
[1765821447965,0.23296909,85849.0,85847.0,0.04610459]
[1765821448188,0.23296745,85849.0,85847.0,0.04610459]
[1765821448425,0.23296745,85849.0,85847.0,0.04910459]
[1765821448648,0.23296745,85849.0,85847.0,0.04810459]
[1765821448860,0.23296745,85849.0,85847.0,0.04610459]
[1765821449091,0.23296745,85849.0,85847.0,0.04710459]
[1765821449520,0.01203047,85850.0,85847.0,0.29172446]
[1765821449734,0.00038225,85850.0,85847.0,0.29172446]
[1765821449950,0.00038225,85850.0,85847.0,0.01956]
[1765821449951,0.23296798,85849.0,85847.0,0.01956]
[1765821450152,0.01203047,85850.0,85847.0,0.01956]
[1765821450358,0.01203047,85850.0,85848.0,0.23296893]
[1765821450359,0.00038225,85850.0,85848.0,0.23296893]
[1765821450873,0.00038225,85850.0,85848.0,0.23296961]
[1765821451114,0.24499524,85850.0,85847.0,0.13599045]
[1765821451324,0.01164849,85848.0,85839.0,0.01164971]
[1765821451534,0.50903762,85850.0,85848.0,0.001]
[1765821451848,0.00038225,85850.0,85848.0,0.001]
[1765821451985,0.23334695,85850.0,85848.0,0.001]
[1765821452184,0.01164876,85846.0,85841.0,0.24463787]
[1765821452387,0.0116489,85845.0,85843.0,0.23298257]
[1765821452701,0.01203047,85850.0,85846.0,0.01164876]
[1765821452903,0.23297005,85848.0,85846.0,0.01164876]
[1765821453103,0.00038225,85850.0,85848.0,0.23296739]
[1765821453508,0.00038225,85850.0,85849.0,0.23296718]
[1765821453689,0.00038225,85850.0,85848.0,0.23296739]
[1765821453902,0.00038225,85850.0,85849.0,0.23296718]
[1765821454102,0.00038225,85850.0,85847.0,0.01164863]
[1765821454360,0.23296753,85849.0,85848.0,0.001]
[1765821454565,0.24499523,85850.0,85848.0,0.001]
[1765821454687,0.23296718,85849.0,85848.0,0.001]
[1765821454898,0.23303504,85824.0,85823.0,0.11643045]
[1765821455331,0.23304319,85821.0,85819.0,0.11643045]
[1765821455545,0.01165188,85823.0,85820.0,0.02754459]
[1765821455751,0.01165134,85827.0,85821.0,0.01165215]
[1765821455971,0.01165188,85823.0,85821.0,0.01856]
[1765821456388,0.01165175,85824.0,85821.0,0.01856]
[1765821456598,0.23304047,85822.0,85821.0,0.01856]
[1765821456806,0.2446869,85824.0,85820.0,0.26325555]
[1765821457179,0.244692,85823.0,85820.0,0.01165229]
[1765821457537,0.01165188,85823.0,85820.0,0.26325815]
[1765821457721,0.01165188,85823.0,85821.0,0.001]
[1765821458265,0.23304047,85822.0,85820.0,0.03021229]
[1765821458468,0.23304047,85822.0,85819.0,0.24470099]
[1765821458469,0.23304047,85822.0,85819.0,0.2447004]
[1765821458669,0.23304047,85822.0,85820.0,0.01856]
[1765821458812,0.24468969,85823.0,85820.0,0.01856]
[1765821459005,0.23304158,85822.0,85820.0,0.01856]
[1765821459263,0.00038201,85827.0,85822.0,0.01165202]
[1765821459394,0.00038201,85827.0,85825.0,0.23303173]
[1765821459611,0.00038201,85827.0,85823.0,0.01165188]
[1765821459821,0.01165188,85823.0,85820.0,0.01856]
[1765821460069,0.24468475,85825.0,85821.0,0.24469517]
[1765821460251,0.24468989,85823.0,85820.0,0.001]
[1765821460478,0.23304319,85821.0,85820.0,0.001]
[1765821460651,0.01165175,85824.0,85821.0,0.01165215]
[1765821461012,0.23303629,85824.0,85820.0,0.001]
[1765821461493,0.23303629,85824.0,85819.0,0.01165243]
[1765821461790,0.01165243,85819.0,85815.0,0.12808342]
[1765821461948,0.24469534,85821.0,85818.0,0.01165256]
[1765821462152,0.01165148,85826.0,85819.0,0.01816954]
[1765821462338,0.01165161,85825.0,85819.0,0.00651711]
[1765821462533,0.23304084,85822.0,85819.0,0.00651711]
[1765821462871,0.233409,85827.0,85824.0,0.23303234]
[1765821463081,0.233409,85827.0,85820.0,0.23304584]
[1765821463082,0.24468966,85823.0,85820.0,0.23304584]
[1765821463322,0.23304591,85820.0,85819.0,0.01856]
[1765821463520,0.01165202,85822.0,85820.0,0.23304591]
[1765821463736,0.24469288,85822.0,85819.0,0.01956]
[1765821463953,0.23304319,85821.0,85819.0,0.01856]
[1765821464116,0.01165202,85822.0,85819.0,0.01856]
[1765821464320,0.24469271,85822.0,85820.0,0.00651711]
[1765821464558,0.0116512,85828.0,85821.0,0.01165215]
[1765821464855,0.01165148,85826.0,85823.0,0.2330372]
[1765821465002,0.01165148,85826.0,85822.0,0.24469249]
[1765821465003,0.23303352,85825.0,85822.0,0.24469249]
[1765821465359,0.24468138,85826.0,85822.0,0.24469249]
[1765821465525,0.23303556,85824.0,85820.0,0.24469276]
[1765821465890,0.01165161,85825.0,85823.0,0.23303747]
[1765821466110,0.01203335,85827.0,85823.0,0.01165188]
[1765821466111,0.00038201,85827.0,85823.0,0.01165188]
[1765821466306,0.23341003,85827.0,85825.0,0.11643045]
[1765821466742,0.00038201,85827.0,85825.0,0.23303057]
[1765821467084,0.0116527,85817.0,85813.0,0.01165324]
[1765821467256,0.23307035,85811.0,85807.0,0.11643045]
[1765821467463,0.2330686,85812.0,85810.0,0.03182362]
[1765821467661,0.23307035,85811.0,85810.0,0.03182362]
[1765821467864,0.01165365,85810.0,85807.0,0.01856]
[1765821468045,0.2330785,85808.0,85807.0,0.01856]
[1765821468243,0.01165365,85810.0,85801.0,0.26331009]
[1765821468244,0.01165433,85805.0,85801.0,0.26331009]
[1765821468620,0.23309479,85802.0,85801.0,0.01856]
[1765821468792,0.23309384,85803.0,85801.0,0.01856]
[1765821468950,0.24475238,85801.0,85797.0,0.01165541]
[1765821469174,0.50865537,85811.0,85799.0,0.01165514]
[1765821469175,0.01165419,85806.0,85799.0,0.01165514]
[1765821469374,0.01165446,85804.0,85798.0,0.24475551]
[1765821469580,0.01165501,85800.0,85797.0,0.00161287]
[1765821469780,0.01165473,85802.0,85798.0,0.24476084]
[1765821469981,0.0116546,85803.0,85799.0,0.24475726]
[1765821470251,0.23309751,85801.0,85799.0,0.001]
[1765821470595,0.24513262,85802.0,85798.0,0.24475843]
[1765821470794,0.01165501,85800.0,85797.0,0.00161287]
[1765821470991,0.24475496,85801.0,85798.0,0.23410516]
[1765821471194,0.24475496,85801.0,85798.0,0.001]
[1765821471195,0.23310294,85799.0,85798.0,0.001]
[1765821471935,0.00038201,85802.0,85799.0,0.24475808]
[1765821472153,0.01203674,85802.0,85798.0,0.24576012]
[1765821472342,0.01203674,85802.0,85797.0,0.00161287]
[1765821472343,0.23310566,85798.0,85797.0,0.00161287]
[1765821472538,0.23347814,85802.0,85798.0,0.01165528]
[1765821472700,0.00038201,85802.0,85801.0,0.23309751]
[1765821473325,0.23310023,85800.0,85799.0,0.11643045]
[1765821473532,0.23310294,85799.0,85798.0,0.00161287]
[1765821473885,0.24513357,85802.0,85798.0,0.23471852]
[1765821474013,0.24513357,85802.0,85798.0,0.35114897]
[1765821474222,0.24475306,85801.0,85798.0,0.1296986]
[1765821474428,0.23347682,85802.0,85800.0,0.23310006]
[1765821474649,0.24513155,85802.0,85799.0,0.24475716]
[1765821474989,0.23309802,85801.0,85799.0,0.24475716]
[1765821475185,0.23309802,85801.0,85799.0,0.01165514]
[1765821475340,0.23309802,85801.0,85798.0,0.36280418]
[1765821475568,0.24513155,85802.0,85799.0,0.23310249]
[1765821475569,0.01303674,85802.0,85799.0,0.23310249]
[1765821475773,0.00038201,85802.0,85800.0,0.23309769]
[1765821476561,0.24513385,85802.0,85799.0,0.24475782]
[1765821476764,0.244755,85801.0,85798.0,0.24637348]
[1765821477142,0.00038201,85802.0,85799.0,0.01165514]
[1765821477352,0.00038201,85802.0,85801.0,0.23309751]
[1765821477469,0.00038201,85802.0,85800.0,0.23309768]
[1765821477673,0.00038201,85802.0,85798.0,0.2463731]
[1765821477674,0.23310283,85800.0,85798.0,0.00161287]
[1765821477874,0.01165487,85801.0,85798.0,0.00161287]
[1765821478079,0.01303674,85802.0,85798.0,0.00161287]
[1765821478277,0.00138201,85802.0,85799.0,0.01165514]
[1765821478481,0.00038201,85802.0,85800.0,0.23309793]
[1765821478683,0.00038201,85802.0,85801.0,0.23309751]
[1765821479359,0.00038201,85802.0,85801.0,0.43433083]
[1765821479568,0.00138201,85802.0,85801.0,0.50820083]
[1765821480537,0.00038201,85802.0,85801.0,0.36970083]
[1765821480737,0.00038201,85802.0,85801.0,0.45289083]
[1765821480945,0.00138201,85802.0,85801.0,0.52976083]
[1765821481159,0.00038201,85802.0,85801.0,0.45589083]
[1765821481361,0.00038201,85802.0,85801.0,0.37699896]
[1765821481603,0.00038201,85802.0,85801.0,0.37799896]
[1765821481844,0.00038201,85802.0,85801.0,0.32762896]
[1765821481997,0.00038201,85802.0,85801.0,0.32462896]
[1765821482228,0.00038201,85802.0,85801.0,0.32762896]
[1765821482438,0.00038201,85802.0,85801.0,0.32662896]
[1765821482637,0.00038201,85802.0,85801.0,0.29280896]
[1765821482842,0.00038201,85802.0,85797.0,0.01165541]
[1765821482843,0.01165555,85796.0,85795.0,0.01998798]
[1765821483095,0.00038201,85802.0,85799.0,0.01165514]
[1765821483393,0.2334768,85802.0,85801.0,0.002]
[1765821483742,0.2334768,85802.0,85799.0,0.11643045]
[1765821483743,0.23310725,85798.0,85796.0,0.11643045]
[1765821483943,0.23310725,85798.0,85797.0,0.01856]
[1765821483944,0.24476253,85798.0,85797.0,0.01856]
[1765821484149,0.24476253,85798.0,85795.0,0.00461287]
[1765821484150,0.2331111,85796.0,85795.0,0.00461287]
[1765821484372,0.2331111,85796.0,85795.0,0.003]
[1765821485315,0.00038201,85802.0,85799.0,0.01165514]
[1765821485525,0.00038201,85802.0,85801.0,0.11643045]
[1765821485767,0.00038201,85802.0,85801.0,0.34952796]
[1765821485898,0.00038201,85802.0,85801.0,0.23309751]
[1765821486557,0.07929471,85806.0,85803.0,0.0116546]
[1765821486714,0.24473539,85807.0,85805.0,0.23308599]
[1765821486917,0.24473539,85807.0,85804.0,0.23308921]
[1765821486918,0.24473786,85807.0,85803.0,0.01176936]
[1765821487122,0.01165351,85811.0,85808.0,0.01165392]
[1765821487308,0.01165324,85813.0,85810.0,0.11643045]
[1765821487713,0.01165324,85813.0,85810.0,0.01165365]
[1765821488023,0.24471248,85815.0,85811.0,0.24472382]
[1765821488222,0.23305517,85817.0,85815.0,0.11643045]
[1765821488425,0.23305677,85816.0,85815.0,0.11643045]
[1765821488853,0.23306277,85814.0,85812.0,0.14397504]
[1765821489214,0.01165297,85815.0,85812.0,0.37704263]
[1765821489215,0.24471256,85815.0,85812.0,0.37704263]
[1765821489421,0.24471308,85815.0,85812.0,0.11643045]
[1765821489708,0.01165297,85815.0,85812.0,0.11643045]
[1765821489826,0.01165297,85815.0,85812.0,0.12808383]
[1765821490029,0.01165256,85818.0,85813.0,0.23306486]
[1765821490030,0.24470675,85817.0,85813.0,0.23306486]
[1765821490238,0.09328196,85850.0,85813.0,0.23306486]
[1765821490239,0.01165148,85826.0,85818.0,0.01165256]
[1765821490620,0.01165148,85826.0,85822.0,0.01165202]
[1765821490823,0.01165134,85827.0,85824.0,0.01165175]
[1765821491002,0.01165134,85827.0,85823.0,0.01165188]
[1765821491159,0.0116512,85828.0,85824.0,0.01165175]
[1765821491358,0.0116512,85828.0,85825.0,0.01165161]
[1765821491541,0.001,85826.0,85825.0,0.01165161]
[1765821491743,0.001,85826.0,85825.0,0.38603049]
[1765821491965,0.001,85826.0,85825.0,0.41019726]
[1765821492228,0.0116508,85831.0,85829.0,0.11643045]
[1765821492517,0.24466528,85832.0,85829.0,0.36110265]
[1765821492741,0.23301821,85831.0,85829.0,0.11643045]
[1765821493300,0.24465912,85834.0,85829.0,0.12808152]
[1765821493502,0.24465912,85834.0,85831.0,0.23301538]
[1765821493708,0.002,85832.0,85831.0,0.23301604]
[1765821494113,0.01164985,85838.0,85834.0,0.01458592]
[1765821494370,0.01164903,85844.0,85840.0,0.01164958]
[1765821494539,0.01164903,85844.0,85836.0,0.01165012]
[1765821494540,0.01164944,85841.0,85836.0,0.24465095]
[1765821494740,0.01164958,85840.0,85837.0,0.01164998]
[1765821494942,0.01164944,85841.0,85838.0,0.23299704]
[1765821494943,0.23298905,85841.0,85838.0,0.23299704]
[1765821495143,0.24463753,85842.0,85838.0,0.24464689]
[1765821495348,0.24463753,85842.0,85840.0,0.11643045]
[1765821495349,0.01164944,85841.0,85840.0,0.11643045]
[1765821495566,0.01164917,85843.0,85840.0,0.11643045]
[1765821495749,0.2329888,85842.0,85840.0,0.11643045]
[1765821496152,0.2446381,85842.0,85838.0,0.24625817]
[1765821496440,0.24463374,85843.0,85839.0,0.01164971]
[1765821496642,0.01164849,85848.0,85846.0,0.11643045]
[1765821496789,0.23297261,85847.0,85846.0,0.11643045]
[1765821497176,0.2404086,85845.0,85843.0,0.11643045]
[1765821497379,0.23298075,85844.0,85843.0,0.11643045]
[1765821497583,0.0116489,85845.0,85841.0,0.01164944]
[1765821497780,0.01164849,85848.0,85844.0,0.23298068]
[1765821497781,0.01164863,85847.0,85844.0,0.23298068]
[1765821497990,0.001,85847.0,85846.0,0.01164876]
[1765821498332,0.001,85847.0,85846.0,0.24462408]
[1765821499231,0.2329621,85851.0,85848.0,0.23296946]
[1765821499440,0.2329563,85854.0,85847.0,0.02164262]
[1765821499651,0.23295925,85852.0,85850.0,0.24461005]
[1765821499863,0.23295891,85853.0,85849.0,0.23296633]
[1765821500155,0.23332895,85864.0,85857.0,0.01164727]
[1765821500156,0.01164686,85860.0,85857.0,0.01164727]
[1765821500376,0.23294005,85859.0,85858.0,0.11643045]
[1765821500499,0.22899212,85859.0,85858.0,0.11643045]
[1765821500768,0.01176147,85860.0,85856.0,0.24294206]
[1765821500981,0.01176147,85860.0,85857.0,0.23294491]
[1765821501256,0.011647,85859.0,85856.0,0.00999399]
[1765821501392,0.01164713,85858.0,85855.0,0.11643045]
[1765821501602,0.01164822,85850.0,85843.0,0.01164917]
[1765821501881,0.00311461,85860.0,85842.0,0.0116493]
[1765821502085,0.01164835,85849.0,85845.0,0.0116489]
[1765821502222,0.00859369,85848.0,85845.0,0.24462568]
[1765821502420,0.24156433,85848.0,85846.0,0.02754459]
[1765821502908,0.00859369,85848.0,85846.0,0.02754459]
[1765821503113,0.001,85850.0,85847.0,0.24462039]
[1765821503315,0.001,85850.0,85848.0,0.3493996]
[1765821503442,0.001,85850.0,85849.0,0.05746399]
[1765821503648,0.001,85850.0,85849.0,0.01160686]
[1765821503850,0.23296262,85851.0,85849.0,0.00161287]
[1765821504053,0.01164795,85852.0,85849.0,0.02017287]
[1765821504602,0.2329629,85851.0,85849.0,0.02017287]
[1765821504935,0.2339629,85851.0,85849.0,0.02017287]
[1765821505147,0.229615,85851.0,85849.0,0.00161287]
[1765821505356,0.229615,85851.0,85849.0,0.02017287]
[1765821505563,0.001,85850.0,85849.0,0.02017287]
[1765821505767,0.229615,85851.0,85849.0,0.02017287]
[1765821506318,0.231615,85851.0,85849.0,0.02017287]
[1765821506533,0.229615,85851.0,85849.0,0.01856]
[1765821506745,0.01164863,85847.0,85843.0,0.11643045]
[1765821506961,0.23298889,85841.0,85840.0,10.34796085]
[1765821507163,0.23298889,85841.0,85840.0,10.31861287]
[1765821507365,0.01164876,85846.0,85842.0,0.0116493]
[1765821507503,0.24462501,85846.0,85845.0,0.11643045]
[1765821507909,0.24463359,85843.0,85841.0,0.00999399]
[1765821508036,0.23298752,85842.0,85840.0,10.34615746]
[1765821508261,0.22880841,85842.0,85840.0,10.34615746]
[1765821508495,0.22880841,85842.0,85840.0,10.34454459]
[1765821509115,0.22880841,85842.0,85840.0,10.317]
[1765821510055,0.22980841,85842.0,85840.0,10.317]
[1765821510449,0.22880841,85842.0,85840.0,10.318]
[1765821511149,0.22880841,85842.0,85840.0,10.317]
[1765821511150,0.22483524,85842.0,85840.0,10.317]
[1765821511379,0.22583524,85842.0,85840.0,10.317]
[1765821512545,0.22683524,85842.0,85840.0,10.317]
[1765821513146,0.22394169,85842.0,85840.0,10.317]
[1765821513559,1.2907,85841.0,85840.0,10.30169]
[1765821513871,1.40702005,85841.0,85840.0,10.30169]
[1765821514636,1.40802005,85841.0,85840.0,10.30169]
[1765821515457,1.41002005,85841.0,85840.0,10.30169]
[1765821515666,1.40802005,85841.0,85840.0,10.30169]
[1765821515920,1.41202005,85841.0,85840.0,10.30169]
[1765821516123,1.52366348,85841.0,85840.0,10.30169]
[1765821516315,1.52266348,85841.0,85840.0,10.30169]
[1765821516556,1.52566348,85841.0,85840.0,10.30169]
[1765821518010,1.52566348,85841.0,85840.0,9.74270849]
[1765821518011,1.64199463,85841.0,85840.0,9.74270849]
[1765821518216,1.69201302,85841.0,85840.0,9.51490249]
[1765821518867,1.57568187,85841.0,85840.0,9.51490249]
[1765821519222,1.57168261,85841.0,85840.0,9.51490249]
[1765821522308,1.56725143,85841.0,85840.0,9.51490249]
[1765821523200,1.80024032,85841.0,85840.0,9.51490249]
[1765821523433,2.04434032,85841.0,85840.0,8.5942354]
[1765821523600,2.04434032,85841.0,85840.0,8.4800669]
[1765821523601,2.18549251,85841.0,85840.0,8.4800669]
[1765821523803,2.18549251,85841.0,85840.0,8.21923014]